[Event "Elite Hotels Open 2023"]
[Site "Elite Stadshotellet, Kungsgatan 6, Vaxjo, Sweden"]
[Date "2023.02.11"]
[Round "6.3"]
[White "Blomqvist, Erik"]
[Black "Trost, Edvin"]
[Result "1/2-1/2"]
[TimeControl "15 minutes + 5 seconds per move from move one (Round 1 - 4) / 90 minutes + 30 seconds per move from move one (Round 5 - 8)"]
[WhiteTitle "GM"]
[BlackTitle "FM"]
[WhiteFideId "1709437"]
[BlackFideId "1729519"]
[WhiteElo "2510"]
[BlackElo "2364"]

1. d4 {[%clk 01:30:56]} {[%emt 00:00:03]} Nf6 {[%clk 01:30:13]} {[%emt
00:00:49]} 2. Bf4 {[%clk 01:31:02]} {[%emt 00:00:24]} d5 {[%clk 01:29:26]}
{[%emt 00:01:16]} 3. e3 {[%clk 01:31:11]} {[%emt 00:00:21]} c5 {[%clk
01:29:45]} {[%emt 00:00:11]} 4. Nf3 {[%clk 01:31:03]} {[%emt 00:00:37]} Nc6
{[%clk 01:29:54]} {[%emt 00:00:22]} 5. Nbd2 {[%clk 01:31:11]} {[%emt 00:00:22]}
Nh5 {[%clk 01:28:13]} {[%emt 00:02:11]} 6. dxc5 {[%clk 01:30:46]} {[%emt
00:00:55]} Nxf4 {[%clk 01:28:31]} {[%emt 00:00:12]} 7. exf4 {[%clk 01:31:10]}
{[%emt 00:00:06]} Qa5 {[%clk 01:28:02]} {[%emt 00:01:00]} 8. c4 {[%clk
01:30:10]} {[%emt 00:01:29]} e6 {[%clk 01:28:21]} {[%emt 00:00:11]} 9. a3
{[%clk 01:29:46]} {[%emt 00:00:54]} Qxc5 {[%clk 01:28:27]} {[%emt 00:00:25]} 10.
Bd3 {[%clk 01:27:28]} {[%emt 00:02:48]} Be7 {[%clk 01:11:54]} {[%emt 00:17:03]}
11. O-O {[%clk 01:24:27]} {[%emt 00:03:30]} O-O {[%clk 01:11:33]} {[%emt
00:00:52]} 12. Qe2 {[%clk 01:13:50]} {[%emt 00:11:06]} Bf6 {[%clk 01:05:31]}
{[%emt 00:06:32]} 13. g3 {[%clk 01:03:10]} {[%emt 00:11:10]} Qd6 {[%clk
00:58:36]} {[%emt 00:07:26]} 14. Rad1 {[%clk 01:01:29]} {[%emt 00:02:09]} g6
{[%clk 00:53:28]} {[%emt 00:05:39]} 15. Rb1 {[%clk 00:50:15]} {[%emt 00:11:44]}
b6 {[%clk 00:47:57]} {[%emt 00:06:01]} 16. Rfd1 {[%clk 00:41:47]} {[%emt
00:08:57]} a6 {[%clk 00:35:41]} {[%emt 00:12:48]} 17. h4 {[%clk 00:29:52]}
{[%emt 00:12:24]} Bb7 {[%clk 00:33:44]} {[%emt 00:02:27]} 18. b4 {[%clk
00:28:31]} {[%emt 00:01:51]} a5 {[%clk 00:17:14]} {[%emt 00:17:01]} 19. bxa5
{[%clk 00:26:05]} {[%emt 00:02:55]} Nxa5 {[%clk 00:15:34]} {[%emt 00:02:10]} 20.
cxd5 {[%clk 00:21:07]} {[%emt 00:05:28]} exd5 {[%clk 00:15:39]} {[%emt
00:00:25]} 21. Ne5 {[%clk 00:21:25]} {[%emt 00:00:12]} Rfe8 {[%clk 00:10:57]}
{[%emt 00:05:13]} 22. Bb5 {[%clk 00:21:28]} {[%emt 00:00:26]} Red8 {[%clk
00:08:53]} {[%emt 00:02:34]} 23. Ne4 {[%clk 00:20:00]} {[%emt 00:01:57]} Qe7
{[%clk 00:09:23]} {[%emt 00:00:02]} 24. Nxf6+ {[%clk 00:13:09]} {[%emt
00:07:21]} Qxf6 {[%clk 00:09:51]} 25. Qb2 {[%clk 00:13:07]} {[%emt 00:00:32]}
Rac8 {[%clk 00:07:16]} {[%emt 00:03:05]} 26. Bf1 {[%clk 00:08:39]} {[%emt
00:04:58]} Rd6 {[%clk 00:06:54]} {[%emt 00:00:53]} 27. Bg2 {[%clk 00:08:46]}
{[%emt 00:00:22]} Rcd8 {[%clk 00:06:00]} {[%emt 00:01:24]} 28. Rbc1 {[%clk
00:08:01]} {[%emt 00:01:16]} Rc8 {[%clk 00:00:40]} {[%emt 00:05:51]} 29. Rxc8+
{[%clk 00:06:48]} {[%emt 00:01:42]} Bxc8 {[%clk 00:01:09]} {[%emt 00:00:01]} 30.
Rxd5 {[%clk 00:03:48]} {[%emt 00:03:29]} Bb7 {[%clk 00:00:32]} {[%emt
00:01:08]} 31. Rxd6 {[%clk 00:03:43]} {[%emt 00:00:35]} Qxd6 {[%clk 00:01:01]}
{[%emt 00:00:01]} 32. Qb5 {[%clk 00:00:45]} {[%emt 00:03:27]} Bxg2 {[%clk
00:00:44]} {[%emt 00:00:48]} 33. Kxg2 {[%clk 00:00:52]} {[%emt 00:00:22]} Kg7
{[%clk 00:00:38]} {[%emt 00:00:36]} 34. h5 {[%clk 00:00:49]} {[%emt 00:00:33]}
gxh5 {[%clk 00:00:51]} {[%emt 00:00:16]} 35. Nf3 {[%clk 00:00:45]} {[%emt
00:00:34]} Qc5 {[%clk 00:00:38]} {[%emt 00:00:44]} 36. Qb2+ {[%clk 00:00:36]}
{[%emt 00:00:39]} f6 {[%clk 00:00:59]} {[%emt 00:00:09]} 37. a4 {[%clk
00:00:46]} {[%emt 00:00:20]} Nc4 {[%clk 00:00:53]} {[%emt 00:00:36]} 38. Qe2
{[%clk 00:01:08]} {[%emt 00:00:07]} Qd5 {[%clk 00:01:00]} {[%emt 00:00:23]} 39.
Kh2 {[%clk 00:01:05]} {[%emt 00:00:32]} Kf7 {[%clk 00:01:11]} {[%emt 00:00:20]}
40. Nh4 {[%clk 00:01:19]} {[%emt 00:00:16]} Nd6 {[%clk 00:00:32]} {[%emt
00:01:09]} 41. f5 {[%clk 00:01:23]} {[%emt 00:00:27]} Kg7 {[%clk 00:00:33]}
{[%emt 00:00:29]} 42. Qxh5 {[%clk 00:01:41]} {[%emt 00:00:11]} Qd4 {[%clk
00:01:01]} {[%emt 00:00:02]} 43. Qf3 {[%clk 00:00:57]} {[%emt 00:01:14]} Qxa4
{[%clk 00:01:04]} {[%emt 00:00:27]} 44. Qd5 {[%clk 00:01:20]} {[%emt 00:00:06]}
Nf7 {[%clk 00:00:38]} {[%emt 00:00:57]} 45. Nf3 {[%clk 00:01:41]} {[%emt
00:00:08]} Qc2 {[%clk 00:00:31]} {[%emt 00:00:38]} 46. Kg2 {[%clk 00:01:59]}
{[%emt 00:00:12]} Qc5 {[%emt 00:00:36]} 47. Qe4 {[%clk 00:01:37]} {[%emt
00:00:35]} Nd6 {[%clk 00:01:13]} 48. Qg4+ {[%clk 00:01:42]} {[%emt 00:00:24]}
Kh8 {[%clk 00:01:26]} {[%emt 00:00:17]} 49. Nd4 {[%clk 00:01:25]} {[%emt
00:00:47]} Qd5+ {[%clk 00:01:54]} {[%emt 00:00:01]} 50. f3 {[%clk 00:01:04]}
{[%emt 00:00:51]} Nf7 {[%clk 00:00:43]} {[%emt 00:01:41]} 51. Ne6 {[%clk
00:00:38]} {[%emt 00:00:57]} Qd2+ {[%clk 00:01:12]} {[%emt 00:00:02]} 52. Kg1
{[%clk 00:00:50]} {[%emt 00:00:17]} Qe1+ {[%clk 00:01:26]} {[%emt 00:00:15]} 53.
Kg2 {[%clk 00:01:16]} {[%emt 00:00:04]} Qd2+ {[%clk 00:01:54]} {[%emt
00:00:03]} 54. Kg1 {[%clk 00:01:33]} {[%emt 00:00:12]} Qe1+ {[%clk 00:02:20]}
{[%emt 00:00:04]} 55. Kg2 {[%clk 00:02:00]} {[%emt 00:00:02]} 1/2-1/2

[Event "Elite Hotels Open 2023"]
[Site "Elite Stadshotellet, Kungsgatan 6, Vaxjo, Sweden"]
[Date "2023.02.11"]
[Round "6.4"]
[White "Falkevall, Axel"]
[Black "Kucuksari, Kaan"]
[Result "0-1"]
[TimeControl "15 minutes + 5 seconds per move from move one (Round 1 - 4) / 90 minutes + 30 seconds per move from move one (Round 5 - 8)"]
[WhiteTitle "FM"]
[BlackTitle "IM"]
[WhiteFideId "1735560"]
[BlackFideId "6380166"]
[WhiteElo "2299"]
[BlackElo "2507"]

1. e4 {[%clk 01:30:58]} c5 {[%clk 01:30:52]} {[%emt 00:00:08]} 2. c3 {[%clk
01:31:23]} {[%emt 00:00:05]} Nf6 {[%clk 01:31:13]} {[%emt 00:00:09]} 3. e5
{[%clk 01:31:48]} {[%emt 00:00:05]} Nd5 {[%clk 01:31:39]} {[%emt 00:00:04]} 4.
d4 {[%clk 01:32:10]} {[%emt 00:00:08]} d6 {[%clk 01:30:51]} {[%emt 00:01:18]} 5.
Nf3 {[%clk 01:31:49]} {[%emt 00:00:51]} cxd4 {[%clk 01:30:50]} {[%emt
00:00:32]} 6. Bc4 {[%clk 01:30:50]} {[%emt 00:01:28]} e6 {[%clk 01:28:06]}
{[%emt 00:03:14]} 7. cxd4 {[%clk 01:31:03]} {[%emt 00:00:18]} Be7 {[%clk
01:28:23]} {[%emt 00:00:13]} 8. O-O {[%clk 01:30:38]} {[%emt 00:00:54]} O-O
{[%clk 01:28:48]} {[%emt 00:00:05]} 9. Qe2 {[%clk 01:30:55]} {[%emt 00:00:12]}
Bd7 {[%clk 01:27:32]} {[%emt 00:01:48]} 10. Rd1 {[%clk 01:28:55]} {[%emt
00:02:29]} Bc6 {[%clk 01:27:38]} {[%emt 00:00:24]} 11. Bxd5 {[%clk 01:26:52]}
{[%emt 00:02:33]} Bxd5 {[%clk 01:27:42]} {[%emt 00:00:26]} 12. Nc3 {[%clk
01:27:12]} {[%emt 00:00:11]} Bxf3 {[%clk 01:22:07]} {[%emt 00:06:05]} 13. Qxf3
{[%clk 01:26:37]} {[%emt 00:01:05]} d5 {[%clk 01:21:54]} {[%emt 00:00:42]} 14.
Qg4 {[%clk 01:19:51]} {[%emt 00:07:17]} f5 {[%clk 01:19:46]} {[%emt 00:02:38]}
15. exf6 {[%clk 01:17:38]} {[%emt 00:02:43]} Rxf6 {[%clk 01:20:14]} {[%emt
00:00:02]} 16. Bf4 {[%clk 01:05:01]} {[%emt 00:13:07]} Nc6 {[%clk 01:19:40]}
{[%emt 00:01:05]} 17. Rd3 {[%clk 01:00:33]} {[%emt 00:04:57]} Qb6 {[%clk
01:17:19]} {[%emt 00:02:51]} 18. Re1 {[%clk 00:50:00]} {[%emt 00:11:03]} Qxb2
{[%clk 01:08:53]} {[%emt 00:08:56]} 19. g3 {[%clk 00:30:38]} {[%emt 00:19:53]}
Bb4 {[%clk 00:48:31]} {[%emt 00:20:52]} 20. Rxe6 {[%clk 00:21:33]} {[%emt
00:09:34]} h5 {[%clk 00:48:17]} {[%emt 00:00:44]} 21. Qh3 {[%clk 00:20:56]}
{[%emt 00:01:07]} Bxc3 {[%clk 00:47:57]} {[%emt 00:00:51]} 22. Rxf6 {[%clk
00:19:23]} {[%emt 00:02:03]} gxf6 {[%clk 00:44:51]} {[%emt 00:03:35]} 23. Qf5
{[%clk 00:13:22]} {[%emt 00:06:31]} Bxd4 {[%clk 00:38:54]} {[%emt 00:06:27]} 24.
Qg6+ {[%clk 00:10:41]} {[%emt 00:03:11]} Kf8 {[%clk 00:39:23]} {[%emt
00:00:01]} 25. Rd2 {[%clk 00:10:12]} {[%emt 00:00:59]} Qb4 {[%clk 00:32:23]}
{[%emt 00:07:30]} 26. Re2 {[%clk 00:08:14]} {[%emt 00:02:29]} Be5 {[%clk
00:32:40]} {[%emt 00:00:13]} 27. Bh6+ {[%clk 00:06:47]} {[%emt 00:01:57]} Ke7
{[%clk 00:33:09]} {[%emt 00:00:01]} 28. f4 {[%clk 00:06:30]} {[%emt 00:00:47]}
Nd4 {[%clk 00:27:16]} {[%emt 00:06:23]} 29. Re3 {[%clk 00:04:08]} {[%emt
00:02:51]} Qc5 {[%clk 00:09:01]} {[%emt 00:18:46]} 30. Qg7+ {[%clk 00:02:52]}
{[%emt 00:01:46]} Ke6 {[%clk 00:09:21]} {[%emt 00:00:10]} 31. fxe5 {[%clk
00:02:28]} {[%emt 00:00:53]} Nf3+ {[%clk 00:08:50]} {[%emt 00:01:02]} 32. Kg2
{[%clk 00:02:00]} {[%emt 00:00:57]} Nxe5 {[%clk 00:09:15]} {[%emt 00:00:05]} 33.
Bf4 {[%clk 00:01:44]} {[%emt 00:00:46]} d4 {[%clk 00:08:48]} {[%emt 00:00:57]}
34. Bxe5 {[%clk 00:00:49]} {[%emt 00:01:25]} Qc2+ {[%clk 00:01:53]} {[%emt
00:07:24]} 35. Kg1 {[%clk 00:01:00]} {[%emt 00:00:20]} Qc1+ {[%clk 00:02:13]}
{[%emt 00:00:11]} 36. Kg2 {[%clk 00:01:22]} {[%emt 00:00:07]} Qc2+ {[%clk
00:02:05]} {[%emt 00:00:39]} 37. Kg1 {[%clk 00:01:47]} {[%emt 00:00:05]} Qc1+
{[%clk 00:02:30]} {[%emt 00:00:04]} 38. Kg2 {[%clk 00:02:14]} {[%emt 00:00:03]}
Qxe3 {[%clk 00:01:10]} {[%emt 00:01:51]} 39. Qxf6+ {[%clk 00:02:01]} {[%emt
00:00:43]} Kd5 {[%clk 00:01:38]} {[%emt 00:00:02]} 40. Qd6+ {[%clk 00:01:12]}
{[%emt 00:01:18]} Ke4 {[%clk 00:01:35]} {[%emt 00:00:34]} 41. Bf4 {[%clk
00:01:02]} {[%emt 00:00:39]} Qe2+ {[%clk 00:00:58]} {[%emt 00:01:06]} 42. Kg1
{[%clk 00:01:16]} {[%emt 00:00:17]} Qe1+ {[%clk 00:01:23]} {[%emt 00:00:05]} 43.
Kg2 {[%clk 00:01:41]} {[%emt 00:00:06]} Qe2+ {[%clk 00:01:50]} {[%emt
00:00:03]} 44. Kg1 {[%clk 00:02:07]} {[%emt 00:00:04]} Qd1+ {[%clk 00:01:06]}
{[%emt 00:01:13]} 45. Kg2 {[%clk 00:02:24]} {[%emt 00:00:13]} Qc2+ {[%clk
00:01:17]} {[%emt 00:00:19]} 46. Kg1 {[%clk 00:02:26]} {[%emt 00:00:29]} Qb1+
{[%clk 00:01:05]} {[%emt 00:00:41]} 47. Kg2 {[%clk 00:02:43]} {[%emt 00:00:13]}
Qxa2+ {[%clk 00:01:20]} {[%emt 00:00:16]} 48. Kh3 {[%clk 00:02:11]} {[%emt
00:01:01]} Qd5 {[%clk 00:00:52]} {[%emt 00:00:57]} 49. Qe7+ {[%clk 00:01:55]}
{[%emt 00:00:47]} Kf3 {[%clk 00:01:13]} {[%emt 00:00:09]} 50. Be5 {[%clk
00:01:58]} {[%emt 00:00:27]} Rd8 {[%clk 00:00:42]} {[%emt 00:01:02]} 51. Qf6+
{[%clk 00:02:05]} {[%emt 00:00:22]} Ke2 {[%clk 00:01:08]} {[%emt 00:00:04]} 52.
Bf4 {[%clk 00:01:55]} {[%emt 00:00:40]} Qd7+ {[%clk 00:01:14]} {[%emt
00:00:24]} 53. Kg2 {[%clk 00:02:16]} {[%emt 00:00:09]} Qc6 {[%clk 00:01:39]}
{[%emt 00:00:05]} 0-1

[Event "Elite Hotels Open 2023"]
[Site "Elite Stadshotellet, Kungsgatan 6, Vaxjo, Sweden"]
[Date "2023.02.11"]
[Round "6.5"]
[White "Hector, Jonny"]
[Black "Krantz, Christopher"]
[Result "1-0"]
[TimeControl "15 minutes + 5 seconds per move from move one (Round 1 - 4) / 90 minutes + 30 seconds per move from move one (Round 5 - 8)"]
[WhiteTitle "GM"]
[WhiteFideId "1700090"]
[BlackFideId "1707876"]
[WhiteElo "2466"]
[BlackElo "2262"]

1. e4 {[%clk 01:30:54]} {[%emt 00:00:04]} e5 {[%clk 01:30:53]} {[%emt
00:00:08]} 2. Nf3 {[%clk 01:31:08]} {[%emt 00:00:16]} Nc6 {[%clk 01:31:16]}
{[%emt 00:00:08]} 3. Nc3 {[%clk 01:31:17]} {[%emt 00:00:20]} Nf6 {[%clk
01:31:26]} {[%emt 00:00:21]} 4. d4 {[%clk 01:31:34]} {[%emt 00:00:12]} exd4
{[%clk 01:31:38]} {[%emt 00:00:18]} 5. Nd5 {[%clk 01:31:55]} {[%emt 00:00:10]}
Nb4 {[%clk 01:31:46]} {[%emt 00:00:21]} 6. Bc4 {[%clk 01:31:52]} {[%emt
00:00:33]} Nbxd5 {[%clk 01:31:39]} {[%emt 00:00:37]} 7. exd5 {[%clk 01:32:10]}
{[%emt 00:00:11]} Bb4+ {[%clk 01:30:59]} {[%emt 00:01:11]} 8. Kf1 {[%clk
01:32:15]} {[%emt 00:00:25]} Be7 {[%clk 01:11:25]} {[%emt 00:20:04]} 9. Qxd4
{[%clk 01:26:58]} {[%emt 00:05:46]} d6 {[%clk 01:09:54]} {[%emt 00:02:02]} 10.
Bg5 {[%clk 01:21:15]} {[%emt 00:06:12]} O-O {[%clk 01:07:16]} {[%emt 00:03:09]}
11. Bd3 {[%clk 01:19:53]} {[%emt 00:01:52]} Re8 {[%clk 01:04:23]} {[%emt
00:03:23]} 12. Re1 {[%clk 01:19:02]} {[%emt 00:01:20]} Bd7 {[%clk 00:49:38]}
{[%emt 00:15:17]} 13. h4 {[%clk 01:10:30]} {[%emt 00:09:00]} c6 {[%clk
00:45:53]} {[%emt 00:04:15]} 14. c4 {[%clk 01:08:49]} {[%emt 00:02:12]} cxd5
{[%clk 00:42:56]} {[%emt 00:03:28]} 15. cxd5 {[%clk 01:08:03]} {[%emt
00:01:15]} a6 {[%clk 00:40:36]} {[%emt 00:02:51]} 16. Kg1 {[%clk 01:05:15]}
{[%emt 00:03:17]} Rc8 {[%clk 00:39:20]} {[%emt 00:01:46]} 17. b4 {[%clk
01:01:17]} {[%emt 00:04:28]} Kf8 {[%clk 00:34:20]} {[%emt 00:05:29]} 18. Bc1
{[%clk 00:55:48]} {[%emt 00:05:59]} Bb5 {[%clk 00:27:42]} {[%emt 00:07:09]} 19.
Bxb5 {[%clk 00:45:12]} {[%emt 00:11:05]} axb5 {[%clk 00:28:04]} {[%emt
00:00:08]} 20. Bb2 {[%clk 00:44:51]} {[%emt 00:00:50]} Nh5 {[%clk 00:17:27]}
{[%emt 00:11:07]} 21. Qd3 {[%clk 00:41:19]} {[%emt 00:04:03]} Bf6 {[%clk
00:14:19]} {[%emt 00:03:37]} 22. Qxh7 {[%clk 00:39:34]} {[%emt 00:02:14]} Rxe1+
{[%clk 00:13:17]} {[%emt 00:01:34]} 23. Nxe1 {[%clk 00:40:00]} {[%emt
00:00:02]} Bxb2 {[%clk 00:10:28]} {[%emt 00:03:21]} 24. Qh8+ {[%clk 00:39:57]}
{[%emt 00:00:33]} Ke7 {[%clk 00:10:51]} {[%emt 00:00:07]} 25. Qxh5 {[%clk
00:40:17]} {[%emt 00:00:10]} Rc1 {[%clk 00:09:03]} {[%emt 00:02:18]} 26. Kh2
{[%clk 00:39:42]} {[%emt 00:01:04]} Be5+ {[%clk 00:06:07]} {[%emt 00:03:26]} 27.
g3 {[%clk 00:39:25]} {[%emt 00:00:47]} Qb6 {[%clk 00:05:13]} {[%emt 00:01:25]}
28. Kg2 {[%clk 00:31:15]} {[%emt 00:08:39]} Rc4 {[%clk 00:03:43]} {[%emt
00:02:00]} 29. Nd3 {[%clk 00:29:44]} {[%emt 00:02:02]} Qd4 {[%clk 00:03:33]}
{[%emt 00:00:39]} 30. Qf3 {[%clk 00:27:16]} {[%emt 00:02:57]} Rc3 {[%clk
00:03:37]} {[%emt 00:00:27]} 31. Rd1 {[%clk 00:27:20]} {[%emt 00:00:26]} g6
{[%clk 00:02:03]} {[%emt 00:02:04]} 32. Nxe5 {[%clk 00:25:19]} {[%emt
00:02:30]} Qxe5 {[%clk 00:02:25]} {[%emt 00:00:09]} 33. Rd3 {[%clk 00:25:32]}
{[%emt 00:00:17]} Rxd3 {[%clk 00:02:13]} {[%emt 00:00:43]} 34. Qxd3 {[%clk
00:25:58]} {[%emt 00:00:03]} Kf6 {[%clk 00:00:55]} {[%emt 00:01:48]} 35. a3
{[%clk 00:25:12]} {[%emt 00:01:16]} Qe1 {[%clk 00:00:38]} {[%emt 00:00:48]} 36.
Qd4+ {[%clk 00:22:32]} {[%emt 00:03:09]} Qe5 {[%clk 00:00:48]} {[%emt
00:00:21]} 37. Qd3 {[%clk 00:21:38]} {[%emt 00:01:24]} Qe1 {[%clk 00:01:08]}
{[%emt 00:00:10]} 38. Qxb5 {[%clk 00:21:24]} {[%emt 00:00:43]} Qe4+ {[%clk
00:01:31]} {[%emt 00:00:07]} 39. Kh2 {[%clk 00:18:43]} {[%emt 00:03:11]} Qf3
{[%clk 00:00:41]} {[%emt 00:01:20]} 40. Kg1 {[%clk 00:19:02]} {[%emt 00:00:12]}
Kf5 {[%clk 00:00:34]} {[%emt 00:00:37]} 41. Qxb7 {[%clk 00:17:50]} {[%emt
00:01:42]} Kg4 {[%clk 00:00:38]} {[%emt 00:00:26]} 42. Qc8+ {[%clk 00:13:01]}
{[%emt 00:05:18]} f5 {[%clk 00:01:00]} {[%emt 00:00:09]} 43. Qc1 {[%clk
00:13:08]} {[%emt 00:00:22]} Qxd5 {[%clk 00:00:58]} {[%emt 00:00:32]} 44. Kh2
{[%clk 00:12:56]} {[%emt 00:00:43]} Qd4 {[%clk 00:00:52]} {[%emt 00:00:36]} 45.
Qf4+ {[%clk 00:11:36]} {[%emt 00:01:49]} Qxf4 {[%clk 00:01:12]} {[%emt
00:00:10]} 46. gxf4 {[%clk 00:11:57]} {[%emt 00:00:09]} d5 {[%clk 00:00:33]}
{[%emt 00:01:10]} 47. Kg2 {[%clk 00:12:14]} {[%emt 00:00:12]} 1-0

[Event "Elite Hotels Open 2023"]
[Site "Elite Stadshotellet, Kungsgatan 6, Vaxjo, Sweden"]
[Date "2023.02.11"]
[Round "6.6"]
[White "Johansson, Gunnar"]
[Black "Jepson, Christian"]
[Result "0-1"]
[TimeControl "15 minutes + 5 seconds per move from move one (Round 1 - 4) / 90 minutes + 30 seconds per move from move one (Round 5 - 8)"]
[BlackTitle "IM"]
[WhiteFideId "1703501"]
[BlackFideId "1701185"]
[WhiteElo "2260"]
[BlackElo "2395"]

1. c4 {[%clk 01:30:57]} {[%emt 00:00:03]} Nf6 {[%clk 01:28:32]} {[%emt
00:02:28]} 2. Nf3 {[%clk 01:31:18]} {[%emt 00:00:09]} d6 {[%clk 01:26:23]}
{[%emt 00:02:40]} 3. Nc3 {[%emt 00:04:39]} g6 {[%emt 00:02:56]} 4. e4 {[%emt
00:03:29]} Bg7 {[%emt 00:00:23]} 5. d4 {[%clk 01:27:04]} O-O {[%clk 01:22:06]}
{[%emt 00:00:03]} 6. h3 {[%clk 01:27:20]} {[%emt 00:00:14]} c5 {[%clk
01:22:22]} {[%emt 00:00:15]} 7. d5 {[%clk 01:27:41]} {[%emt 00:00:09]} e6
{[%clk 01:22:34]} {[%emt 00:00:18]} 8. Bd3 {[%clk 01:28:04]} {[%emt 00:00:06]}
Nbd7 {[%clk 01:22:04]} {[%emt 00:01:01]} 9. O-O {[%clk 01:27:02]} {[%emt
00:01:31]} e5 {[%clk 01:22:04]} {[%emt 00:00:31]} 10. g4 {[%clk 01:16:50]}
{[%emt 00:10:42]} h5 {[%clk 01:21:30]} {[%emt 00:01:03]} 11. Ne1 {[%clk
01:12:07]} {[%emt 00:05:14]} a6 {[%clk 01:12:14]} {[%emt 00:09:47]} 12. a4
{[%emt 00:02:42]} hxg4 {[%emt 00:00:09]} 13. hxg4 {[%clk 01:11:19]} {[%emt
00:00:03]} Nh7 {[%emt 00:00:44]} 14. Kg2 {[%emt 00:15:16]} Ndf6 {[%clk
00:54:54]} {[%emt 00:09:19]} 15. f3 {[%clk 01:02:14]} {[%emt 00:02:29]} Ne8
{[%clk 00:55:14]} {[%emt 00:00:11]} 16. Nc2 {[%clk 01:00:00]} {[%emt 00:02:43]}
Bf6 {[%clk 00:55:25]} {[%emt 00:00:19]} 17. Bh6 {[%clk 00:51:44]} {[%emt
00:08:46]} Ng7 {[%clk 00:53:06]} {[%emt 00:02:49]} 18. Qe2 {[%clk 00:49:16]}
{[%emt 00:02:58]} Bg5 {[%clk 00:52:05]} {[%emt 00:01:31]} 19. Bxg5 {[%clk
00:41:59]} {[%emt 00:07:48]} Qxg5 {[%clk 00:49:28]} {[%emt 00:03:06]} 20. Qe3
{[%clk 00:41:38]} {[%emt 00:00:51]} f5 {[%clk 00:14:58]} {[%emt 00:35:01]} 21.
Qxg5 {[%clk 00:37:40]} {[%emt 00:04:28]} Nxg5 {[%clk 00:14:58]} {[%emt
00:00:28]} 22. Ne3 {[%clk 00:32:49]} {[%emt 00:05:21]} f4 {[%clk 00:11:54]}
{[%emt 00:03:34]} 23. Nc2 {[%clk 00:33:01]} {[%emt 00:00:19]} Ne8 {[%clk
00:11:59]} {[%emt 00:00:25]} 24. Rh1 {[%clk 00:32:10]} {[%emt 00:01:20]} Nf6
{[%clk 00:12:11]} {[%emt 00:00:18]} 25. b3 {[%clk 00:29:08]} {[%emt 00:03:34]}
Bd7 {[%clk 00:12:14]} {[%emt 00:00:26]} 26. Na3 {[%clk 00:29:03]} {[%emt
00:00:34]} Kg7 {[%clk 00:10:54]} {[%emt 00:01:50]} 27. Rh4 {[%clk 00:29:05]}
{[%emt 00:00:28]} Nxf3 {[%clk 00:08:20]} {[%emt 00:03:04]} 28. Kxf3 {[%clk
00:28:33]} {[%emt 00:01:03]} g5 {[%clk 00:08:48]} {[%emt 00:00:02]} 29. Rhh1
{[%clk 00:28:24]} {[%emt 00:00:38]} Rh8 {[%clk 00:07:30]} {[%emt 00:01:48]} 30.
Nc2 {[%clk 00:27:38]} {[%emt 00:01:15]} Bxg4+ {[%clk 00:06:48]} {[%emt
00:01:13]} 31. Kf2 {[%clk 00:26:47]} {[%emt 00:01:21]} Bd7 {[%clk 00:06:57]}
{[%emt 00:00:21]} 32. Rag1 {[%clk 00:26:44]} {[%emt 00:00:32]} g4 {[%clk
00:07:10]} {[%emt 00:00:18]} 33. Be2 {[%clk 00:23:36]} {[%emt 00:03:39]} Kg6
{[%clk 00:03:35]} {[%emt 00:04:05]} 34. Ne1 {[%clk 00:20:20]} {[%emt 00:03:44]}
Kf7 {[%clk 00:02:03]} {[%emt 00:02:03]} 35. Rxh8 {[%clk 00:16:59]} {[%emt
00:03:52]} Rxh8 {[%clk 00:02:31]} {[%emt 00:00:02]} 36. Kg2 {[%clk 00:16:59]}
{[%emt 00:00:29]} Rh3 {[%clk 00:02:39]} {[%emt 00:00:22]} 37. Nf3 {[%clk
00:14:02]} {[%emt 00:03:27]} gxf3+ {[%clk 00:01:21]} {[%emt 00:01:49]} 38. Bxf3
{[%clk 00:14:29]} {[%emt 00:00:03]} Bg4 {[%clk 00:00:53]} {[%emt 00:00:58]} 39.
Bxg4 {[%clk 00:14:16]} {[%emt 00:00:43]} Rg3+ {[%clk 00:01:22]} {[%emt
00:00:01]} 40. Kf1 {[%clk 00:13:46]} {[%emt 00:00:59]} Rxg1+ {[%clk 00:01:44]}
{[%emt 00:00:08]} 41. Kxg1 {[%clk 00:14:06]} {[%emt 00:00:09]} Nxg4 {[%clk
00:02:12]} {[%emt 00:00:03]} 42. Kg2 {[%clk 00:13:05]} {[%emt 00:01:31]} Ne3+
{[%clk 00:02:27]} {[%emt 00:00:15]} 43. Kh3 {[%clk 00:12:41]} {[%emt 00:00:55]}
Nc2 {[%clk 00:02:33]} {[%emt 00:00:24]} 44. Nb1 {[%clk 00:12:49]} {[%emt
00:00:21]} Nd4 {[%clk 00:02:27]} {[%emt 00:00:36]} 45. Nd2 {[%clk 00:13:17]}
{[%emt 00:00:02]} Ke7 {[%clk 00:02:43]} {[%emt 00:00:15]} 0-1